bitfinex-derivatives/quotes_ETHF0:USTF0_20260112
["timestamp","ask_amount","ask_price","bid_price","bid_amount"]
[1768227266834,1.12252787,3111.9,3110.7,1.24183578]
[1768227267040,0.89342267,3111.8,3110.7,1.24183578]
[1768227267237,1.12252787,3111.9,3110.7,1.24183578]
[1768227267437,0.89321035,3111.8,3110.7,1.24183578]
[1768227267635,1.12252787,3111.9,3110.7,1.24183578]
[1768227267838,0.89321119,3111.8,3110.7,1.24183578]
[1768227268037,1.12252787,3111.9,3110.7,1.24183578]
[1768227268237,0.89307221,3111.8,3110.7,1.24183578]
[1768227268441,1.12252787,3111.9,3110.7,1.24183578]
[1768227268637,0.89305968,3111.8,3110.9,1.24183578]
[1768227268829,1.12252787,3111.9,3110.9,1.24183578]
[1768227269029,0.8930608,3111.8,3110.9,1.24183578]
[1768227269229,1.12252787,3111.9,3110.9,1.24183578]
[1768227269426,0.89294113,3111.8,3110.9,1.24183578]
[1768227269634,1.12252787,3111.9,3110.9,1.24183578]
[1768227269832,0.8929415,3111.8,3110.9,1.24183578]
[1768227270032,1.12252787,3111.9,3110.9,1.24183578]
[1768227270234,0.8929346,3111.8,3110.9,1.24183578]
[1768227270436,1.12252787,3111.9,3110.9,1.24183578]
[1768227270632,0.89285027,3111.8,3110.7,1.24183578]
[1768227270835,1.12252787,3111.9,3110.7,1.24183578]
[1768227271035,0.89285879,3111.8,3110.7,1.24183578]
[1768227271234,1.12252787,3111.9,3110.7,1.24183578]
[1768227271434,0.89289224,3111.8,3110.7,1.24183578]
[1768227271636,1.12252787,3111.8,3110.8,1.737]
[1768227273335,1.12252787,3111.8,3110.6,0.00343369]
[1768227273537,1.12252787,3111.4,3110.6,0.00343369]
[1768227273728,2.36436365,3111.3,3110.6,1.74043369]
[1768227279747,1.12252787,3111.3,3110.6,1.74043369]
[1768227286748,1.13697614,3111.9,3110.6,1.74043369]
[1768227286950,2.37881192,3111.7,3110.6,1.74043369]
[1768227287149,0.89265352,3111.6,3110.6,1.74043369]
[1768227300858,1.24183578,3111.5,3110.6,1.73543369]
[1768227301058,0.89265352,3111.4,3110.6,1.73543369]
[1768227302157,1.13697614,3111.0,3110.6,0.00343369]
[1768227302352,1.24183578,3110.7,3109.7,3.05507151]
[1768227302560,1.24183578,3110.5,3109.7,1.731]
[1768227303350,2.37881192,3110.7,3109.7,1.73482581]
[1768227304054,1.13697614,3110.7,3109.7,1.73482581]
[1768227304255,1.09546918,3111.5,3110.1,1.24183578]
[1768227304559,0.89228713,3111.4,3110.1,1.24183578]
[1768227304758,0.89228713,3111.3,3110.1,1.24183578]
[1768227304958,0.89228713,3111.2,3110.1,1.24183578]
[1768227305161,0.89228713,3111.1,3110.1,1.24183578]
[1768227305361,0.89228713,3111.0,3110.1,1.24183578]
[1768227305562,1.09546918,3111.4,3110.1,1.24183578]
[1768227305763,2.13401841,3111.3,3110.1,1.24183578]
[1768227305953,1.98765181,3111.2,3110.1,1.24183578]
[1768227306155,3.22948759,3111.1,3110.2,1.732]
[1768227306460,0.89218263,3111.0,3110.2,1.732]
[1768227306762,2.33730496,3111.1,3110.2,1.732]
[1768227306969,0.892277,3111.0,3110.2,1.732]
[1768227307164,2.33730496,3111.1,3110.2,1.732]
[1768227307465,0.89214576,3111.0,3110.2,1.732]
[1768227307766,2.33730496,3111.1,3110.2,1.732]
[1768227307956,0.89214201,3111.0,3110.2,1.732]
[1768227308154,2.33730496,3111.1,3110.2,1.732]
[1768227308356,0.89203942,3111.0,3110.2,1.732]
[1768227308551,2.33730496,3111.1,3110.2,1.732]
[1768227310559,1.98722072,3111.0,3109.7,0.16481581]
[1768227310754,2.33730496,3110.9,3109.8,1.731]
[1768227312859,1.24183578,3110.7,3109.7,0.16481581]
[1768227313059,1.24183578,3110.7,3109.7,1.89481581]
[1768227313263,2.33730496,3110.9,3109.7,1.89481581]
[1768227313765,2.33730496,3110.9,3109.7,3.13665159]
[1768227314064,1.09546918,3110.9,3109.7,3.13665159]
[1768227314267,2.35467046,3111.3,3109.9,1.24183578]
[1768227314472,0.89152232,3111.2,3109.9,1.24183578]
[1768227314667,0.89152232,3111.1,3109.9,1.24183578]
[1768227314968,2.35467046,3111.3,3109.9,1.24183578]
[1768227315168,0.89151957,3111.2,3109.9,1.24183578]
[1768227315366,0.89151957,3111.1,3109.7,1.89481581]
[1768227315565,1.11283468,3111.2,3109.7,1.89481581]
[1768227315867,0.89148748,3111.1,3109.7,1.89481581]
[1768227316068,1.11283468,3111.2,3109.7,1.89481581]
[1768227316268,0.89147156,3111.1,3109.7,1.89481581]
[1768227316471,1.11283468,3111.2,3109.7,1.89481581]
[1768227316770,0.89146855,3111.1,3109.7,1.89481581]
[1768227316958,1.11283468,3111.2,3109.7,1.89481581]
[1768227317162,0.89146795,3111.1,3109.7,1.89481581]
[1768227317364,1.11283468,3111.2,3109.7,1.89481581]
[1768227317662,0.89146752,3111.1,3109.7,1.89481581]
[1768227317862,1.11283468,3111.2,3109.7,3.04317952]
[1768227318066,0.89146619,3111.1,3109.7,3.04317952]
[1768227318266,1.11283468,3111.2,3109.8,0.16099]
[1768227319367,1.11283468,3111.2,3109.7,2.88218952]
[1768227319579,1.11283468,3111.6,3110.1,1.14836371]
[1768227319869,0.89151883,3111.5,3110.1,1.14836371]
[1768227320070,0.89151883,3111.4,3110.1,1.14836371]
[1768227320271,1.11283468,3111.6,3110.1,1.14836371]
[1768227320467,0.89160238,3111.5,3110.1,1.30933371]
[1768227320670,0.89160238,3111.4,3110.1,1.30933371]
[1768227320866,1.11283468,3111.6,3110.1,1.30933371]
[1768227321059,0.89160172,3111.5,3110.1,1.30933371]
[1768227321264,0.89160172,3111.4,3110.1,1.30933371]
[1768227321561,1.11283468,3111.6,3110.1,1.30933371]
[1768227321763,0.89164746,3111.5,3110.1,1.30933371]
[1768227321973,0.89164746,3111.4,3110.1,1.30933371]
[1768227322272,1.11283468,3111.6,3110.1,1.30933371]
[1768227322474,0.89170114,3111.5,3110.1,1.30933371]
[1768227322674,0.89170114,3111.4,3110.1,1.30933371]
[1768227322973,1.11283468,3111.6,3110.1,1.30933371]
[1768227323171,0.89173608,3111.5,3110.1,1.30933371]
[1768227323373,1.11283468,3111.6,3110.1,1.30933371]
[1768227323571,0.8902664,3111.5,3110.1,1.30933371]
[1768227323774,1.11283468,3111.6,3110.1,1.30933371]
[1768227323969,1.11283468,3112.0,3110.4,1.40333121]
[1768227324169,0.8900837,3111.9,3110.8,1.24238121]
[1768227324372,1.11283468,3112.0,3110.9,1.73]
[1768227324576,0.88989637,3111.9,3110.9,1.73]
[1768227324774,0.00237673,3112.2,3110.9,1.73]
[1768227324975,0.88990186,3112.1,3110.9,1.73]
[1768227325162,0.88990186,3112.0,3110.9,1.73]
[1768227325366,1.11521141,3112.2,3110.9,1.73]
[1768227325567,2.00246008,3112.1,3110.9,1.73]
[1768227325767,1.11283468,3112.1,3110.9,1.73]
[1768227325971,0.00237673,3112.2,3111.0,1.14836371]
[1768227330290,0.00237673,3112.2,3111.0,1.30928371]
[1768227335187,0.00237673,3112.2,3111.2,0.16091]
[1768227355207,1.0618654,3112.1,3110.8,2.89408151]
[1768227355408,1.0618654,3111.7,3110.7,1.723]
[1768227355604,1.95337827,3111.6,3110.7,1.723]
[1768227355804,1.0618654,3111.6,3110.7,1.723]
[1768227356005,1.0618654,3111.4,3110.2,3.217]
[1768227356205,1.0618654,3111.4,3110.1,2.89408151]
[1768227356408,1.0618654,3111.4,3110.2,1.723]
[1768227357009,1.0618654,3111.4,3110.1,1.724]
[1768227357514,1.0618654,3111.2,3110.1,1.724]
[1768227359915,1.0618654,3111.2,3109.7,0.00382581]
[1768227360108,1.0618654,3111.2,3109.8,1.723]
[1768227360419,2.30424661,3111.0,3109.7,0.00382581]
[1768227360617,1.0618654,3110.9,3109.7,0.00382581]
[1768227360914,1.0618654,3110.7,3109.7,0.00382581]
[1768227362622,1.0618654,3110.4,3108.4,2.89408151]
[1768227362913,1.0618654,3109.9,3108.3,1.723]
[1768227363112,1.0618654,3109.9,3107.9,1.04715695]
[1768227363417,1.0618654,3109.9,3108.4,1.723]
[1768227363614,1.06411827,3109.9,3108.4,1.72576465]
[1768227365323,1.04266298,3109.7,3108.4,0.00276465]
[1768227366517,1.04266298,3109.3,3108.4,0.00276465]
[1768227367010,1.04266298,3109.3,3107.3,0.16112]
[1768227367209,1.04266298,3109.3,3107.4,4.94]
[1768227367913,0.00225287,3109.9,3107.4,1.722]
[1768227367914,1.04266298,3108.9,3107.4,1.722]
[1768227368213,1.04266298,3108.9,3107.4,1.72514329]
[1768227368418,1.04266298,3108.9,3107.4,0.00314329]
[1768227371609,1.04266298,3109.6,3107.9,1.24238121]
[1768227372711,1.04266298,3109.6,3107.8,0.16109]
[1768227374722,1.07005392,3109.0,3107.6,0.975]
[1768227375114,1.07005392,3109.0,3107.4,0.00314329]
[1768227376824,1.23105392,3109.6,3107.7,1.24238121]
[1768227377028,1.07005392,3109.4,3107.6,0.1611]
[1768227377917,1.07005392,3109.4,3107.6,1.8811]
[1768227378524,1.07005392,3109.4,3107.6,0.1611]
[1768227380525,1.23106392,3109.4,3107.5,1.72]
[1768227380726,1.07005392,3109.2,3107.4,0.00314329]
[1768227382819,1.07005392,3109.2,3107.4,0.16425329]
[1768227383420,1.07005392,3109.2,3107.5,0.1611]
[1768227385319,1.07005392,3109.0,3107.5,0.1611]
[1768227387137,1.07005392,3109.0,3107.4,0.00314329]
[1768227387437,1.07005392,3108.7,3107.4,0.00314329]
[1768227387733,1.07005392,3108.3,3107.4,0.00230313]
[1768227387922,0.89073896,3108.2,3106.6,1.718]
[1768227388132,1.07005392,3108.0,3106.6,1.718]
[1768227388825,1.07005392,3108.0,3106.6,1.72069102]
[1768227389425,1.07005392,3108.0,3106.6,0.00269102]
[1768227389628,4.30485623,3108.8,3106.6,0.00269102]
[1768227389629,1.07005392,3107.8,3106.6,0.00269102]
[1768227389844,1.07005392,3107.6,3106.6,0.00269102]
[1768227390133,1.07287846,3107.6,3106.6,0.00269102]
[1768227391331,1.07005392,3107.4,3106.6,0.00269102]
[1768227392432,1.07005392,3107.4,3106.2,1.15049276]
[1768227392734,0.89288765,3107.3,3105.7,1.18717485]
[1768227392925,0.00282454,3107.6,3105.8,1.02597485]
[1768227393247,1.96294142,3107.5,3105.9,1.717]
[1768227393431,1.07005392,3107.3,3105.9,0.00261606]
[1768227393936,1.9626494,3107.2,3105.9,0.00261606]
[1768227394138,1.9626494,3107.1,3105.9,0.00261606]
[1768227394436,1.01978096,3106.9,3105.9,0.00261606]
[1768227394738,0.89259548,3106.8,3105.9,0.00261606]
[1768227394933,1.01978096,3107.4,3105.9,0.00261606]
[1768227395132,0.89201771,3107.3,3105.9,0.00261606]
[1768227395339,0.89201771,3107.2,3105.9,0.00261606]
[1768227395537,0.89201771,3107.1,3105.9,0.00261606]
[1768227395836,0.89201771,3107.0,3105.9,0.00261606]
[1768227396135,1.01978096,3107.4,3105.9,0.00261606]
[1768227396336,1.91128497,3107.3,3105.9,0.00261606]
[1768227396537,0.89150401,3107.2,3105.9,0.00261606]
[1768227396742,0.89150401,3107.2,3105.9,1.1064524]
[1768227396942,0.00282454,3107.6,3105.9,1.2676424]
[1768227397234,0.8915781,3107.5,3105.9,1.2676424]
[1768227397434,0.8915781,3107.4,3105.9,1.2676424]
[1768227397640,0.8915781,3107.3,3105.9,1.2676424]
[1768227397840,3.0104408,3107.5,3105.9,0.00261606]
[1768227398045,1.01978096,3107.3,3105.9,0.00261606]
[1768227398243,1.91114412,3107.2,3105.9,0.00261606]
[1768227398445,0.00282454,3107.6,3105.9,0.00261606]
[1768227398742,0.8911123,3107.5,3105.9,0.00261606]
[1768227398942,0.8911123,3107.4,3105.9,0.00261606]
[1768227399133,0.8911123,3107.3,3105.9,0.00261606]
[1768227399335,0.00282454,3107.6,3105.9,0.00261606]
[1768227399336,1.01978096,3107.5,3105.9,0.00261606]
[1768227399530,0.89088433,3107.4,3105.9,0.00261606]
[1768227399729,0.89088433,3107.3,3105.9,0.00261606]
[1768227399943,1.01978096,3107.5,3105.9,0.00261606]
[1768227400144,0.89089833,3107.4,3105.9,0.00261606]
[1768227400346,0.89089833,3107.3,3105.9,1.1064524]
[1768227400550,1.01978096,3107.5,3105.9,1.1064524]
[1768227400844,0.89072192,3107.4,3105.9,1.1064524]
[1768227401048,0.89072192,3107.3,3105.9,1.1064524]
[1768227401347,1.01978096,3107.5,3105.9,1.1064524]
[1768227401551,0.89056702,3107.4,3105.9,1.1064524]
[1768227401746,0.89056702,3107.3,3105.9,1.1064524]
[1768227401939,1.01978096,3107.5,3105.9,1.1064524]
[1768227402249,0.89056876,3107.4,3105.9,1.1064524]
[1768227402446,0.89056876,3107.3,3105.9,1.1064524]
[1768227402648,1.01978096,3107.5,3105.9,1.1064524]
[1768227402851,0.89059901,3107.4,3105.9,1.1064524]
[1768227403041,1.01978096,3107.5,3105.9,1.1064524]
[1768227403341,0.89059654,3107.4,3105.9,1.1064524]
[1768227403543,1.01978096,3107.5,3105.9,1.1064524]
[1768227403744,0.89068098,3107.4,3105.9,1.1064524]
[1768227403945,1.01978096,3107.5,3105.9,1.1064524]
[1768227404147,0.89067833,3107.4,3105.9,1.1064524]
[1768227404340,1.01978096,3107.5,3105.9,1.1064524]
[1768227404537,0.89080702,3107.4,3105.9,1.1064524]
[1768227404736,1.01978096,3107.5,3105.9,1.1064524]
[1768227404939,0.00282454,3107.6,3106.3,1.10383634]
[1768227406256,0.00282454,3107.6,3106.4,1.10383634]
[1768227406445,0.00282454,3107.6,3106.8,1.10383634]
[1768227408354,0.00282454,3107.6,3106.7,1.87515]
[1768227409553,0.00282454,3107.6,3106.7,1.714]
[1768227409854,0.00282454,3107.6,3106.6,1.714]
[1768227410048,0.00282454,3107.6,3106.5,1.713]
[1768227410445,1.01978096,3107.2,3105.9,0.00261606]
[1768227411947,1.0226055,3107.6,3105.9,0.00261606]
[1768227412146,0.89214336,3107.5,3105.9,0.00261606]
[1768227412343,0.89214336,3107.4,3105.9,0.00261606]
[1768227412546,0.89214336,3107.3,3105.9,0.00261606]
[1768227412746,0.89214336,3107.2,3105.9,0.00261606]
[1768227412946,1.0226055,3107.6,3105.9,0.00261606]
[1768227413157,0.8920889,3107.5,3105.9,0.00261606]
[1768227413350,0.8920889,3107.4,3105.9,0.00261606]
[1768227413552,1.91186986,3107.3,3105.9,0.00261606]
[1768227413748,0.8920889,3107.2,3105.9,0.00261606]
[1768227413956,1.01978096,3107.1,3105.9,0.00261606]
[1768227414155,1.01978096,3106.9,3105.9,0.00261606]
[1768227415454,1.01978096,3107.3,3105.9,0.00261606]
[1768227415659,0.89265024,3107.2,3105.9,0.00261606]
[1768227415957,0.89265024,3107.1,3105.9,0.00261606]
[1768227416156,1.01978096,3107.3,3105.9,0.00261606]
[1768227416356,0.89323889,3107.2,3105.9,0.00261606]
[1768227416555,0.89323889,3107.1,3105.9,0.00261606]
[1768227416755,0.89323889,3107.0,3105.9,0.00261606]
[1768227416956,1.01978096,3107.3,3105.9,0.00261606]
[1768227417158,0.8932443,3107.2,3105.9,0.00261606]
[1768227417359,0.8932443,3107.1,3105.9,0.00261606]
[1768227417562,0.8932443,3107.0,3105.9,0.00261606]
[1768227417760,1.01978096,3107.3,3105.9,0.00261606]
[1768227417953,0.89393114,3107.2,3105.9,0.00261606]
[1768227418267,0.89393114,3107.1,3105.9,0.00261606]
[1768227418558,0.89393114,3107.0,3105.9,0.00261606]
[1768227418862,1.01978096,3107.3,3105.9,0.00261606]
[1768227419053,0.89409062,3107.2,3105.9,0.00261606]
[1768227419360,0.89409062,3107.1,3105.9,0.00261606]
[1768227419657,0.89409062,3107.0,3105.9,0.00261606]
[1768227419859,1.01978096,3107.3,3105.9,0.00261606]
[1768227420160,0.89423898,3107.2,3105.9,0.00261606]
[1768227420355,0.89423898,3107.1,3105.9,0.00261606]
[1768227420556,0.89423898,3107.0,3105.9,0.00261606]
[1768227420754,1.01978096,3107.3,3105.9,0.00261606]
[1768227420956,0.89424559,3107.2,3105.9,0.00261606]
[1768227421162,0.89424559,3107.1,3105.9,0.00261606]
[1768227421462,0.89424559,3107.0,3105.9,0.00261606]
[1768227421662,1.01978096,3107.3,3105.9,0.00261606]
[1768227421864,0.89406819,3107.2,3105.9,0.00261606]
[1768227422061,0.89406819,3107.1,3105.9,0.00261606]
[1768227422261,1.01978096,3107.3,3105.9,0.00261606]
[1768227422465,0.89409932,3107.2,3105.9,0.00261606]
[1768227422660,0.89409932,3107.1,3105.9,0.00261606]
[1768227422962,0.89409932,3107.0,3105.9,0.00261606]
[1768227423263,1.01978096,3107.3,3105.9,0.00261606]
[1768227423466,1.01978096,3107.1,3105.9,0.00261606]
[1768227423664,0.89409646,3107.0,3105.9,0.00261606]
[1768227423965,1.01978096,3107.1,3105.9,0.00261606]
[1768227424166,1.91383225,3107.0,3105.9,0.00261606]
[1768227424364,0.89405129,3106.9,3105.9,0.00261606]
[1768227425167,1.01978096,3107.0,3105.9,0.00261606]
[1768227425662,0.894094,3106.9,3105.9,0.00261606]
[1768227425864,1.01978096,3107.0,3105.9,0.00261606]
[1768227426067,0.89409724,3106.9,3105.9,0.00261606]
[1768227426257,1.01978096,3107.0,3105.9,0.00261606]
[1768227426560,0.89408334,3106.9,3105.9,0.00261606]
[1768227426860,1.01978096,3107.0,3105.9,0.00261606]
[1768227427061,0.89398625,3106.9,3105.9,0.00261606]
[1768227427367,1.01978096,3107.0,3105.9,0.00261606]
[1768227427568,1.14473675,3106.8,3104.7,2.89408151]
[1768227427764,2.88460364,3106.9,3104.6,5.76008795]
[1768227427765,1.14473675,3106.5,3104.6,5.76008795]
[1768227428073,1.99065984,3106.9,3104.6,5.76008795]
[1768227428074,1.14473675,3106.3,3104.6,1.709]
[1768227428267,1.14473675,3106.1,3104.3,0.16127]
[1768227428471,1.14473675,3105.9,3104.3,0.1652458]
[1768227429064,1.14473675,3105.9,3103.2,1.16133572]
[1768227429065,0.16122,3105.3,3103.2,1.16133572]
[1768227429270,5.68289937,3105.8,3102.8,2.87033572]
[1768227429271,0.16125,3104.7,3102.8,2.87033572]
[1768227429467,1.99065984,3104.4,3102.3,1.16133572]
[1768227429669,1.99065984,3102.4,3101.3,1.03888984]
[1768227429873,1.99065984,3101.4,3098.5,4.05108795]
[1768227430077,2.1443923,3101.3,3098.5,1.16133572]
[1768227430367,1.14473675,3099.9,3096.3,0.16169]
[1768227430575,1.14473675,3099.3,3095.7,2.21667126]
[1768227430869,1.75914254,3099.2,3095.5,0.26279356]
[1768227431057,0.50514254,3099.1,3095.4,0.031]
[1768227431380,0.50514254,3099.0,3097.2,0.16164]
[1768227431568,0.16139,3102.0,3097.6,0.16162]
[1768227431760,1.07034563,3101.9,3098.2,1.99065984]
[1768227431969,0.90894563,3101.8,3098.5,1.99065984]
[1768227432159,1.99065984,3101.6,3098.5,1.99065984]
[1768227432361,0.16135,3102.9,3099.1,1.19591195]
[1768227432563,0.98383903,3100.0,3099.1,0.00311484]
[1768227432858,0.98383903,3102.7,3099.0,0.023]
[1768227433059,0.98383903,3103.3,3099.1,3.224]
[1768227433263,0.94469853,3102.7,3099.7,1.99065984]
[1768227433471,0.94469853,3102.2,3098.9,1.99065984]
[1768227433669,2.93535837,3100.8,3098.9,0.00265195]
[1768227433971,2.93535837,3100.3,3098.9,0.00265195]
[1768227434271,2.9673936,3100.6,3098.9,0.00265195]
[1768227434463,0.97673376,3100.1,3097.7,0.292]
[1768227434664,0.97673376,3100.8,3097.7,1.48791195]
[1768227435566,1.21046454,3100.4,3097.7,1.4911623]
[1768227435762,0.05617066,3100.5,3097.7,4.0778097]
[1768227435962,1.21046454,3101.0,3097.8,1.19591195]
[1768227436164,1.42806931,3101.0,3097.8,1.19591195]
[1768227436364,1.21046454,3100.3,3097.7,3.22763685]
[1768227436583,1.37195454,3100.1,3097.7,3.22763685]
[1768227437173,1.21046454,3099.8,3097.7,0.00163685]
[1768227437376,1.21046454,3099.7,3097.7,0.00163685]
[1768227437578,1.21046454,3099.3,3096.6,1.19591195]
[1768227438464,0.00247,3099.8,3096.8,1.19591195]
[1768227438666,1.21293454,3099.8,3096.9,1.19591195]
[1768227438869,1.21046454,3098.9,3096.8,0.00255487]
[1768227439068,2.5866474,3099.0,3096.8,0.00255487]
[1768227439069,1.21046454,3098.7,3096.8,0.00255487]
[1768227439271,1.21046454,3099.3,3096.8,1.19846682]
[1768227439463,0.16158,3098.5,3096.8,0.00255487]
[1768227439670,6.00247,3099.8,3095.1,0.21794406]
[1768227439671,1.21046454,3098.1,3095.2,1.19591195]
[1768227439870,1.21046454,3098.6,3095.4,1.19591195]
[1768227440066,1.21046454,3099.2,3095.6,1.19591195]
[1768227440262,1.21046454,3099.3,3096.3,1.19591195]
[1768227440671,1.21046454,3099.3,3096.4,1.19591195]
[1768227441371,0.16154,3099.2,3096.4,1.19591195]
[1768227441675,1.21046454,3099.3,3096.6,1.19591195]
[1768227442277,1.21046454,3099.1,3096.6,1.19591195]
[1768227442475,1.37202454,3098.7,3096.3,0.00377958]
[1768227442675,1.21046454,3098.3,3096.3,0.00377958]
[1768227442875,1.37204454,3098.3,3096.3,0.00377958]
[1768227443371,1.21046454,3098.9,3096.3,1.19969153]
[1768227443967,1.21046454,3098.9,3096.4,1.19591195]
[1768227444274,0.16155,3099.0,3096.5,1.19591195]
[1768227444771,0.0561947,3099.3,3096.7,1.19591195]
[1768227445173,0.0561947,3099.3,3096.8,6.13591195]
[1768227445476,1.26665924,3099.3,3096.8,6.13591195]
[1768227446674,1.37200454,3099.2,3096.8,6.13591195]
[1768227447175,0.16159,3098.2,3096.3,0.00377958]
[1768227447375,1.21046454,3098.8,3096.3,1.19969153]
[1768227447881,1.37202454,3098.8,3096.3,1.36138153]
[1768227448073,0.0561947,3099.3,3096.3,1.19969153]
[1768227448277,1.26665924,3099.3,3096.7,1.19591195]
[1768227448974,0.16154,3099.2,3096.7,1.19591195]
[1768227449175,1.37200454,3099.2,3096.8,1.19591195]
[1768227449970,0.0561947,3099.3,3097.1,1.19591195]
[1768227450173,1.21293454,3099.8,3097.3,1.35754195]
[1768227450572,0.16152,3099.6,3097.3,1.35754195]
[1768227450774,0.16152,3099.6,3097.5,1.19591195]
[1768227450976,1.37198454,3099.6,3097.5,1.19591195]
[1768227451371,1.21046454,3099.6,3096.9,1.19591195]
[1768227451582,1.21046454,3099.5,3096.9,1.19591195]
[1768227452181,1.21046454,3099.4,3096.9,1.19591195]
[1768227452577,0.16156,3098.8,3096.9,1.19591195]
[1768227454180,1.37199454,3099.4,3096.9,1.19591195]
[1768227454382,1.37199454,3099.4,3097.1,1.67896652]
[1768227454890,0.00247,3099.8,3097.6,1.51731652]
[1768227455381,0.16153,3099.4,3097.6,1.51731652]
[1768227455690,1.55471759,3099.6,3097.0,1.51731652]
[1768227455985,0.16157,3098.7,3097.0,1.51731652]
[1768227456782,1.55471759,3098.5,3096.5,1.51731652]
[1768227457286,0.16159,3098.2,3096.5,1.51731652]
[1768227457884,0.16156,3098.7,3096.5,1.51731652]
[1768227458187,1.42944307,3098.6,3096.7,1.51731652]
[1768227458390,0.50184851,3098.5,3096.7,1.67898652]
[1768227458582,0.16156,3098.7,3096.7,1.67898652]
[1768227458783,1.42947617,3098.6,3096.3,3.23477958]
[1768227458991,0.1616,3098.0,3096.3,0.00377958]
[1768227459184,1.41682885,3097.9,3096.3,0.00377958]
[1768227459486,1.41682885,3097.8,3096.3,0.00377958]
[1768227459686,1.41682885,3097.7,3096.3,1.5210961]
[1768227459990,1.55471759,3098.5,3096.3,1.5210961]
[1768227459991,4.03048398,3098.5,3096.3,1.5210961]
[1768227460290,3.6933155,3098.4,3096.3,1.5210961]
[1768227460482,1.37911911,3098.3,3096.3,1.5210961]
[1768227460688,1.37911911,3098.2,3096.3,1.5210961]
[1768227460889,1.37911911,3098.1,3096.3,1.5210961]
[1768227461083,1.37911911,3098.0,3096.3,1.5210961]
[1768227461283,0.16158,3098.4,3096.3,1.5210961]
[1768227461284,0.93166492,3097.9,3096.3,1.5210961]
[1768227461484,0.93166492,3097.8,3096.3,1.5210961]
[1768227461792,0.16158,3098.4,3096.3,1.5210961]
[1768227461990,0.93225807,3098.3,3096.5,1.67899652]
[1768227462192,2.31419639,3098.7,3096.3,0.00377958]
[1768227462193,0.93225807,3098.2,3096.7,1.67897652]
[1768227462391,0.93225807,3098.1,3096.9,1.51731652]
[1768227462592,2.47574639,3098.9,3096.9,1.51731652]
[1768227462793,1.32712988,3098.8,3096.9,1.67896652]
[1768227462993,0.93305141,3098.7,3096.9,1.67896652]
[1768227463191,0.93305141,3098.6,3097.4,1.51731652]
[1768227463492,0.93305141,3098.5,3097.4,1.51731652]
[1768227463691,2.31419639,3099.4,3097.6,1.51731652]
[1768227463893,2.31419639,3099.2,3097.3,3.231]
[1768227464092,2.31419639,3099.2,3097.2,3.231]
[1768227464484,2.31419639,3099.2,3097.3,1.51731652]
[1768227464681,2.31419639,3099.1,3096.4,25.5]
[1768227464992,2.31419639,3099.1,3096.3,0.00377958]
[1768227464993,1.55471759,3097.8,3096.3,0.00377958]
[1768227465196,2.47580639,3097.9,3096.3,0.00377958]
[1768227465587,2.31419639,3097.8,3096.3,0.00377958]
[1768227465787,2.31419639,3098.1,3096.3,1.5210961]
[1768227466287,2.31419639,3098.0,3096.3,1.5210961]
[1768227466594,2.31419639,3098.0,3096.3,1.6827761]
[1768227466793,3.86891398,3098.0,3096.3,0.16545958]
[1768227466988,2.31419639,3098.0,3096.3,1.6827761]
[1768227467986,2.31419639,3098.1,3096.3,1.6827761]
[1768227468188,2.31419639,3098.1,3096.3,4.9147761]
[1768227468491,1.71632759,3097.9,3096.3,0.00377958]
[1768227468682,2.31419639,3097.6,3096.3,0.00377958]
[1768227468888,2.31769244,3097.6,3096.3,0.00377958]
[1768227469289,2.31419639,3097.5,3096.3,0.00377958]
[1768227469690,0.00349605,3097.6,3096.3,0.00377958]
[1768227469888,2.31769244,3097.6,3096.3,0.00377958]
[1768227470188,0.00349605,3097.6,3096.3,0.00377958]
[1768227471801,0.00349605,3097.6,3096.3,1.5210961]
[1768227473495,0.00349605,3097.6,3096.5,1.67899652]
[1768227474398,0.00349605,3097.6,3096.5,7.67899652]
[1768227475294,0.00349605,3097.6,3096.5,3.38499652]
[1768227475602,0.00349605,3097.6,3096.5,1.67899652]
[1768227475802,0.93182178,3097.5,3096.5,1.67899652]
[1768227475993,0.00349605,3097.6,3096.5,1.67899652]
[1768227476190,0.00349605,3097.6,3096.7,1.51731652]
[1768227476395,2.31419639,3098.3,3096.7,1.51731652]
[1768227476596,2.31419639,3098.4,3096.8,0.16166]
[1768227476799,2.31419639,3098.5,3096.8,0.16166]
[1768227477296,2.31419639,3098.4,3096.8,0.16166]
[1768227477498,3.86891398,3098.4,3096.9,1.706]
[1768227478198,3.86891398,3098.4,3096.8,0.16166]
[1768227478701,1.55471759,3098.1,3096.3,0.00377958]
[1768227478904,3.86891398,3098.1,3096.3,0.00377958]
[1768227479199,1.55471759,3098.1,3096.3,0.00377958]
[1768227479501,3.86891398,3098.1,3096.3,0.00377958]
[1768227479691,2.31419639,3098.2,3096.4,0.16168]
[1768227479898,2.31419639,3098.3,3096.5,1.67898652]
[1768227480195,2.31419639,3098.4,3096.7,1.67898652]
[1768227480391,3.86891398,3098.4,3096.7,0.16167]
[1768227480595,1.55471759,3098.3,3096.7,0.16167]
[1768227481098,3.86891398,3098.2,3096.3,0.00377958]
[1768227481298,3.86891398,3097.9,3096.3,0.00377958]
[1768227481494,1.55471759,3097.4,3095.4,0.16173]
[1768227481691,1.71635759,3097.2,3095.3,3.232]
[1768227481895,5.19473091,3097.6,3095.8,1.67902652]
[1768227482197,3.86891398,3097.6,3095.8,6.29802652]
[1768227482398,2.31419639,3097.8,3096.4,0.16168]
[1768227482599,3.86891398,3098.0,3096.4,1.70716638]
[1768227482804,1.71633759,3097.7,3095.2,1.51731652]
[1768227482999,1.55471759,3097.3,3095.5,0.16173]
[1768227483804,1.55471759,3097.3,3095.5,0.16416758]
[1768227484003,1.55471759,3097.2,3095.5,0.16416758]
[1768227484194,1.55471759,3097.2,3095.5,0.00243758]
[1768227484397,1.83395897,3097.1,3095.5,0.00243758]
[1768227485199,4.14815536,3097.1,3095.5,0.00243758]
[1768227485401,1.83395897,3097.0,3095.5,0.00243758]
[1768227486504,1.83395897,3096.5,3094.6,0.16178]
[1768227487298,1.83395897,3096.5,3094.0,0.16181]
[1768227487299,1.83395897,3096.3,3094.0,0.16181]
[1768227487502,1.83395897,3096.3,3092.8,7.46601915]
[1768227487503,0.16184,3093.5,3090.5,0.28123567]
[1768227487703,0.00755995,3092.3,3089.2,0.16206]
[1768227487901,0.00755995,3092.1,3089.2,1.98865419]
[1768227488204,5.96771881,3092.2,3087.7,1.98865419]
[1768227488205,0.16197,3091.0,3087.7,1.98865419]
[1768227488404,0.05838892,3090.5,3087.0,5.7880685]
[1768227488609,0.05838892,3090.3,3087.2,1.98865419]
[1768227488807,0.31069427,3090.2,3087.7,1.98865419]
[1768227489012,0.31069427,3090.1,3087.7,1.98865419]
[1768227489307,0.31069427,3090.0,3088.6,0.16209]
[1768227489498,2.28771881,3093.1,3089.5,0.16204]
[1768227489812,0.1618,3094.3,3090.4,0.16199]
[1768227490003,0.96978735,3094.2,3090.4,3.39599]
[1768227490307,5.46117885,3094.1,3090.4,0.16199]
[1768227490507,0.96817885,3094.0,3090.5,32.7]